bitfinex-derivatives/quotes_ETHF0:USTF0_20240826
["timestamp","ask_amount","ask_price","bid_price","bid_amount"]
[1724670704206,4.01008,2742.8,2742.7,0.82433407]
[1724670704394,0.36448,2742.8,2742.7,0.82433407]
[1724670704599,1.27568,2742.8,2742.7,0.3685]
[1724670704805,1.27568,2742.8,2742.7,0.82432595]
[1724670707611,1.27568,2742.8,2742.7,0.45582595]
[1724670708611,2.18688,2742.8,2742.7,0.45582595]
[1724670711405,2.18688,2742.8,2742.4,4.28933]
[1724670711406,0.36452,2742.5,2742.4,4.28933]
[1724670711613,0.36452,2742.5,2742.4,4.74515929]
[1724670711806,0.36452,2742.5,2742.4,8.95067394]
[1724670712813,0.36452,2742.5,2742.4,5.74287394]
[1724670713207,0.36452,2742.5,2742.4,8.95067394]
[1724670715209,0.36451,2742.7,2742.6,0.36449]
[1724670715419,0.36451,2742.7,2742.6,1.76093394]
[1724670716605,0.36451,2742.7,2742.6,4.96873394]
[1724670717115,0.36451,2742.7,2742.6,4.40961929]
[1724670717907,0.36451,2742.7,2742.6,4.40959898]
[1724670719411,3.4161,2743.3,2742.6,4.40959898]
[1724670719412,0.3644,2743.5,2742.7,3.6456]
[1724670719713,0.36439,2743.5,2743.0,1.31967425]
[1724670719909,0.36438,2743.6,2743.1,2.50367881]
[1724670720217,0.36438,2743.6,2743.2,1.39540743]
[1724670720416,0.36889239,2743.6,2743.3,0.45580898]
[1724670720711,0.36889239,2743.6,2743.2,0.3805]
[1724670720913,0.36439,2743.5,2743.4,0.45568696]
[1724670721710,0.36889239,2743.6,2743.4,0.45568696]
[1724670721903,0.36889239,2743.6,2743.5,0.45568696]
[1724670722112,0.00451239,2743.6,2743.5,0.45568696]
[1724670722403,3.64931239,2743.6,2743.5,0.45568696]
[1724670723213,3.64931239,2743.6,2743.2,0.74492]
[1724670723415,0.00451239,2743.6,2743.5,0.45568582]
[1724670724216,0.00451239,2743.6,2743.5,7.61487582]
[1724670724415,0.00451239,2743.6,2743.5,8.1738508]
[1724670724712,0.00361633,2743.7,2743.6,0.36437]
[1724670724919,3.31686738,2744.2,2744.1,0.36431]
[1724670725114,3.31686738,2744.2,2744.1,1.3789708]
[1724670725307,3.31686738,2744.2,2744.1,0.81999582]
[1724670725513,3.31686738,2744.2,2744.1,1.20169582]
[1724670725819,3.32002981,2744.2,2744.1,1.20169582]
[1724670727613,0.00316243,2744.2,2744.1,1.20152976]
[1724670727815,0.00316243,2744.2,2744.1,1.55082976]
[1724670728017,0.00316243,2744.2,2744.1,1.92362976]
[1724670728523,3.78603195,2744.3,2744.1,1.92362976]
[1724670728524,3.78603195,2744.3,2744.1,12.9556]
[1724670728725,4.28453854,2744.4,2744.3,0.36428]
[1724670729029,4.28453854,2744.4,2744.3,3.96970521]
[1724670729213,4.28453854,2744.4,2744.3,12.15828]
[1724670729619,4.28837114,2744.4,2744.3,12.16208298]
[1724670729826,4.28837114,2744.4,2744.3,7.16208298]
[1724670734216,4.28837114,2744.4,2744.3,13.07279298]
[1724670735029,0.0038326,2744.4,2744.3,12.16208298]
[1724670735522,0.0038326,2744.4,2744.3,7.16208298]
[1724670735726,0.36417,2745.1,2744.3,11.79780298]
[1724670735914,1.29268,2745.3,2744.3,3.15380298]
[1724670735915,0.3813,2745.2,2744.3,3.15380298]
[1724670736231,0.36417,2745.1,2744.8,0.3642]
[1724670736718,0.36834732,2745.1,2744.8,0.3642]
[1724670736924,0.00417732,2745.1,2744.8,0.3642]
[1724670737429,0.00417732,2745.1,2744.9,0.3642]
[1724670738024,0.00417732,2745.1,2744.5,0.91064]
[1724670738427,0.00417732,2745.1,2744.9,0.36419]
[1724670739824,0.00417732,2745.1,2745.0,0.36419]
[1724670741924,0.36835732,2745.1,2744.8,0.36421]
[1724670742118,0.36419,2745.0,2744.8,0.36421]
[1724670742321,0.36835732,2745.1,2744.9,0.36419]
[1724670742526,0.36835732,2745.1,2744.8,0.3642]
[1724670742727,0.36835732,2745.1,2744.7,0.3575]
[1724670742728,0.36835732,2745.1,2744.9,0.3642]
[1724670743616,0.36835732,2745.1,2744.7,0.3575]
[1724670743617,0.00417732,2745.1,2745.0,0.36419]
[1724670744122,0.00417732,2745.1,2745.0,3.57199]
[1724670745127,0.36834732,2745.1,2745.0,3.2078]
[1724670745426,0.00417732,2745.1,2745.0,3.57199]
[1724670747023,0.36834732,2745.1,2745.0,3.2078]
[1724670749524,0.36834732,2745.1,2745.0,3.57199]
[1724670749928,0.00417732,2745.1,2745.0,3.57199]
[1724670752129,0.00417732,2745.1,2745.0,4.31249]
[1724670754731,0.00417732,2745.1,2745.0,3.57199]
[1724670754732,0.36834732,2745.1,2745.0,3.57199]
[1724670754938,0.36834732,2745.1,2745.0,3.2078]
[1724670755527,1.27878732,2745.1,2745.0,3.2078]
[1724670755933,0.91461732,2745.1,2744.7,3.9283]
[1724670756131,0.91461732,2745.1,2744.3,0.00380298]
[1724670756132,0.36425,2744.5,2744.3,0.00380298]
[1724670756334,0.91054,2744.8,2744.5,0.36425]
[1724670756541,0.91054,2744.8,2744.3,0.00380298]
[1724670756542,0.36425,2744.6,2744.4,0.36426]
[1724670756739,0.7207,2744.7,2744.3,0.00380298]
[1724670756938,0.74426,2744.5,2744.3,0.00380298]
[1724670757237,0.74426,2744.5,2744.4,0.36427]
[1724670757238,0.38,2744.5,2744.4,0.36427]
[1724670757832,0.7207,2744.7,2744.6,0.36424]
[1724670758329,0.3554,2744.7,2744.6,0.36424]
[1724670759046,0.3642,2744.9,2744.7,0.36422]
[1724670759337,0.3834,2744.9,2744.8,0.36421]
[1724670759842,0.3834,2744.9,2744.8,3.57201]
[1724670760844,0.00417732,2745.1,2745.0,0.36419]
[1724670763843,0.36834732,2745.1,2745.0,0.36419]
[1724670764044,0.36419,2745.0,2744.9,0.74069]
[1724670764338,0.36419,2745.0,2744.8,3.572]
[1724670764339,0.75149,2745.0,2744.8,3.572]
[1724670764943,0.75149,2745.0,2744.9,0.3642]
[1724670765141,0.3642,2744.9,2744.8,3.2078]
[1724670765348,0.745,2744.9,2744.8,3.2078]
[1724670766440,5.29871,2744.9,2744.8,3.2078]
[1724670768642,5.29871,2744.9,2744.4,2.0623589]
[1724670768643,0.91055,2744.8,2744.4,0.36426]
[1724670768946,0.91055,2744.8,2744.5,0.4555134]
[1724670768947,0.36425,2744.6,2744.5,0.4555134]
[1724670769442,0.36425,2744.6,2744.5,0.81977129]
[1724670769443,3.6432,2744.6,2744.5,0.81977129]
[1724670769651,0.36423,2744.7,2744.6,0.36424]
[1724670769945,0.36422,2744.8,2744.6,0.81975129]
[1724670770144,0.36422,2744.8,2744.7,0.45552129]
[1724670770548,0.36422,2744.8,2744.6,0.36423]
[1724670770745,0.36422,2744.8,2744.7,0.45547137]
[1724670770746,1.27476,2744.8,2744.7,0.45547137]
[1724670771241,4.91796,2744.8,2744.7,0.45547137]
[1724670771746,4.00742,2744.8,2744.7,0.45547137]
[1724670772649,4.91796,2744.8,2744.7,0.45547137]
[1724670772844,4.00742,2744.8,2744.7,0.45547137]
[1724670773343,0.36422,2744.8,2744.7,0.45547137]
[1724670774246,1.27476,2744.8,2744.7,0.45547137]
[1724670774442,20.91398946,2744.8,2744.3,0.00380298]
[1724670774645,20.91398946,2744.8,2744.0,0.3581]
[1724670774646,0.91061,2744.6,2744.0,0.3581]
[1724670774946,0.36429,2744.2,2744.1,0.45557232]
[1724670775553,4.00829,2744.2,2744.1,0.45557232]
[1724670775755,4.00829,2744.2,2744.1,0.46029339]
[1724670776555,4.00829,2744.2,2744.1,0.46032201]
[1724670777250,4.00829,2744.2,2744.1,0.00472107]
[1724670780257,0.36429,2744.2,2744.1,0.00472107]
[1724670781251,1.27503,2744.2,2744.1,0.00472107]
[1724670781751,4.91903,2744.2,2744.1,0.00472107]
[1724670784256,0.36429,2744.2,2744.1,0.00472107]
[1724670784556,0.36429,2744.2,2744.1,0.74663107]
[1724670785553,0.36429,2744.2,2744.1,0.38232107]
[1724670786354,0.36429,2744.2,2744.1,0.74663107]
[1724670789749,0.36429,2744.3,2744.2,0.36428]
[1724670790055,0.36427,2744.4,2744.3,0.36427]
[1724670791059,0.36429,2744.3,2744.2,0.36428]
[1724670792458,1.27499,2744.3,2744.2,0.36428]
[1724670793159,1.27503,2744.2,2744.1,0.38232107]
[1724670793656,2.18577,2744.2,2744.1,0.38232107]
[1724670793858,2.18577,2744.2,2744.1,0.00472107]
[1724670793859,5.82977,2744.2,2744.1,0.00472107]
[1724670794158,8.97977,2744.2,2744.1,0.00472107]
[1724670794357,10.80125,2744.2,2744.1,0.00472107]
[1724670794549,8.97977,2744.2,2744.1,0.00472107]
[1724670794953,9.72037,2744.2,2744.1,0.00472107]
[1724670797155,4.91903,2744.2,2744.1,0.00472107]
[1724670798758,5.82977,2744.2,2744.1,0.00472107]
[1724670799153,4.91903,2744.2,2744.1,0.00472107]
[1724670799461,5.82977,2744.2,2744.1,0.00472107]
[1724670800560,6.21497,2744.2,2744.1,0.00472107]
[1724670800948,13.03645,2744.2,2744.1,0.00472107]
[1724670801149,2.18592,2744.0,2743.9,0.00547535]
[1724670801354,0.3644,2743.5,2743.4,0.36439]
[1724670801572,0.3644,2743.4,2743.3,1.4912]
[1724670801750,0.3644,2743.4,2743.3,1.94688175]
[1724670801950,0.3644,2743.4,2743.3,1.94688701]
[1724670802146,0.3644,2743.4,2743.3,1.95096928]
[1724670802662,0.3644,2743.4,2743.3,1.95097276]
[1724670803158,0.3644,2743.4,2743.3,1.49528227]
[1724670803857,1.2754,2743.4,2743.3,1.13088227]
[1724670804645,1.2754,2743.4,2743.3,0.75068227]
[1724670805050,2.1864,2743.4,2743.3,0.75068227]
[1724670805958,2.1864,2743.4,2743.3,0.37678227]
[1724670811457,0.3644,2743.4,2743.3,0.74119227]
[1724670812255,1.2754,2743.4,2743.3,0.74119227]
[1724670813152,1.2754,2743.4,2743.3,0.37678227]
[1724670813957,2.1864,2743.4,2743.3,0.37678227]
[1724670815346,2.1864,2743.4,2743.3,0.00408227]
[1724670815760,5.8312,2743.4,2743.3,0.00408227]
[1724670817464,2.1864,2743.4,2743.3,0.00408227]
[1724670821856,1.2754,2743.4,2743.3,0.00408227]
[1724670823852,2.1864,2743.4,2743.3,0.00408227]
[1724670824861,2.5436,2743.4,2743.3,0.00408227]
[1724670827159,2.18656,2743.2,2743.1,0.38976508]
[1724670827571,5.83216,2743.2,2743.1,0.38976508]
[1724670828267,5.83216,2743.2,2743.1,0.39409739]
[1724670831671,1.27549,2743.2,2743.1,0.75853739]
[1724670833473,4.92109,2743.2,2743.1,0.75853739]
[1724670833675,1.27549,2743.2,2743.1,0.75853739]
[1724670835062,0.36442,2743.2,2743.1,0.75853739]
[1724670835266,1.51726122,2743.6,2743.3,0.3644]
[1724670835267,0.36442,2743.4,2743.3,0.3644]
[1724670836376,1.27542,2743.4,2743.3,0.3644]
[1724670838372,0.3644,2743.5,2743.4,0.36439]
[1724670838776,0.3644,2743.5,2743.4,0.82006888]
[1724670841478,0.00544111,2743.6,2743.5,0.36439]
[1724670841673,0.00544111,2743.6,2743.5,8.58363888]
[1724670841875,0.59900062,2744.2,2744.1,0.36431]
[1724670842077,0.59900062,2744.2,2744.1,4.00831]
[1724670842272,0.59899062,2744.2,2744.1,4.46388622]
[1724670842673,0.36429,2744.2,2744.1,4.09957622]
[1724670843176,0.91066,2744.5,2744.1,4.45717622]
[1724670843383,3.2078,2744.8,2744.4,0.36426]
[1724670843579,0.36425,2744.6,2744.5,0.45549888]
[1724670843974,0.36425,2744.6,2744.5,4.09869888]
[1724670844173,0.36425,2744.6,2744.5,3.6432]
[1724670845275,0.36427,2744.4,2744.3,3.2078]
[1724670845475,0.36427,2744.4,2744.3,3.66332526]
[1724670845787,0.36427,2744.4,2744.3,7.67160526]
[1724670846178,0.36427,2744.4,2744.3,7.21608]
[1724670846581,0.36426,2744.5,2744.3,7.21608]
[1724670846780,0.36426,2744.5,2744.3,3.57208]
[1724670847175,0.91035,2745.4,2744.4,5.01019372]
[1724670847385,0.36417,2745.2,2744.9,0.36419]
[1724670847585,0.36834732,2745.1,2744.9,0.36419]
[1724670847786,0.00417732,2745.1,2745.0,0.36419]
[1724670848184,0.00417732,2745.1,2745.0,4.00739]
[1724670849278,0.36834732,2745.1,2745.0,3.6432]
[1724670849479,0.36419,2745.0,2744.5,0.37176508]
[1724670849692,0.36419,2745.0,2744.8,0.36421]
[1724670849988,0.36419,2745.0,2744.8,4.00741]
[1724670850373,0.00417732,2745.1,2744.7,0.36422]
[1724670850374,0.3642,2744.9,2744.7,0.36422]
[1724670850577,0.36419,2745.0,2744.8,0.36421]
[1724670852592,0.36835732,2745.1,2744.9,0.3642]
[1724670852785,0.36835732,2745.1,2745.0,0.3563]
[1724670854485,0.36835732,2745.1,2745.0,4.36369]
[1724670854692,0.00417732,2745.1,2745.0,4.36369]
[1724670862901,0.00417732,2745.1,2745.0,7.57149]
[1724670863090,0.36834732,2745.1,2745.0,7.57149]
[1724670863290,0.73564732,2745.1,2745.0,7.57149]
[1724670864394,0.73564732,2745.1,2745.0,3.2078]
[1724670864985,1.09934732,2745.1,2745.0,3.2078]
[1724670867300,1.09934732,2745.1,2745.0,3.57199]
[1724670868095,1.09934732,2745.1,2745.0,0.36419]
[1724670868291,0.73517732,2745.1,2744.9,3.2078]
[1724670868592,1.09935732,2745.1,2745.0,0.36419]
[1724670869595,0.37147732,2745.1,2745.0,0.36419]
[1724670870986,0.00417732,2745.1,2745.0,0.36419]
[1724670871186,0.00417732,2745.1,2745.0,5.28346]
[1724670872691,0.00417732,2745.1,2745.0,8.49126]
[1724670875797,0.00417732,2745.1,2745.0,5.28346]
[1724670876095,0.00417732,2745.1,2745.0,8.49126]
[1724670876300,0.36412,2745.6,2745.5,0.36411]
[1724670876505,0.74102,2745.6,2745.5,0.36411]
[1724670877504,1.65450498,2745.6,2745.5,0.00403569]
[1724670877796,6.20717498,2745.6,2745.5,0.00403569]
[1724670877987,11.20717498,2745.6,2745.5,0.00403569]
[1724670878592,6.20717498,2745.6,2745.5,0.00403569]
[1724670880001,11.20717498,2745.6,2745.5,0.00403569]
[1724670880708,9.02251498,2745.6,2745.0,3.2078]
[1724670881010,0.36422,2744.8,2744.7,0.36422]
[1724670881200,0.36421,2744.9,2744.6,0.8988206]
[1724670881605,0.36421,2744.9,2744.8,0.36421]
[1724670881797,0.7266,2745.0,2744.8,0.36775927]
[1724670882001,0.3642,2744.9,2744.8,0.36775927]
[1724670883308,0.7266,2745.0,2744.8,0.36775927]
[1724670883309,1.0908,2745.0,2744.9,0.3642]
[1724670883902,1.4481,2745.0,2744.9,0.3642]
[1724670885716,1.4481,2745.0,2744.8,0.36774927]
[1724670885717,0.3642,2744.9,2744.8,0.36774927]
[1724670886012,0.3642,2744.9,2744.8,0.45899527]
[1724670886617,0.3642,2744.9,2744.8,0.82320527]
[1724670888916,0.3642,2744.9,2744.8,0.36775927]
[1724670889113,0.3642,2744.9,2744.8,0.45899345]
[1724670889612,0.3642,2744.9,2744.8,0.82320345]
[1724670891113,0.3642,2744.9,2744.8,0.45899345]
[1724670892419,4.91791,2744.9,2744.8,0.00354927]
[1724670892624,4.91791,2744.9,2744.8,0.45903631]
[1724670894519,4.91791,2744.9,2744.8,0.82324631]
[1724670894821,4.91791,2744.9,2744.8,0.45903631]
[1724670895823,4.91791,2744.9,2744.8,0.45902688]
[1724670896922,1.27471,2744.9,2744.8,0.45902688]
[1724670897314,4.91791,2744.9,2744.8,0.45902688]
[1724670897910,1.27471,2744.9,2744.8,0.45902688]
[1724670898820,4.91791,2744.9,2744.8,0.45902688]
[1724670899018,1.27471,2744.9,2744.8,0.45902688]
[1724670899227,4.91791,2744.9,2744.8,0.45902688]
[1724670899427,1.27471,2744.9,2744.8,0.45902688]
[1724670899613,4.91791,2744.9,2744.8,0.45902688]
[1724670901015,7.13842,2744.9,2744.8,0.45902688]
[1724670901223,7.13842,2744.9,2744.8,0.00354927]
[1724670902029,5.82842,2744.9,2744.8,0.45905345]
[1724670903727,4.91791,2744.9,2744.8,0.45905345]
[1724670904127,1.0839,2745.0,2744.8,0.45905345]
[1724670904128,0.73879,2745.0,2744.8,0.45905345]
[1724670904334,0.36419,2745.1,2745.0,0.36417]
[1724670904520,0.36419,2745.1,2745.0,0.81959568]
[1724670904721,0.36419,2745.1,2745.0,1.54369568]
[1724670905817,0.36419,2745.1,2745.0,0.45542568]
[1724670905818,1.27463,2745.1,2745.0,0.45542568]
[1724670906638,0.3642,2744.9,2744.8,0.00354927]
[1724670906833,0.3642,2744.9,2744.8,0.45899508]
[1724670907016,0.7415,2744.9,2744.8,0.45899508]
[1724670907933,0.7415,2744.9,2744.8,0.45899909]
[1724670908132,0.7415,2744.9,2744.8,0.82320976]
[1724670908435,1.65201,2744.9,2744.8,0.45899976]
[1724670908932,1.65201,2744.9,2744.8,0.45900284]
[1724670910629,2.56252,2744.9,2744.8,0.45900284]
[1724670910829,6.20572,2744.9,2744.8,0.00354927]
[1724670911736,6.93922,2744.9,2744.8,0.00354927]
[1724670914724,11.93922,2744.9,2744.8,0.00354927]
[1724670914934,1.27484,2744.6,2744.5,0.00546508]
[1724670915537,5.82864,2744.6,2744.5,0.00546508]
[1724670915837,5.82864,2744.6,2744.5,0.00923723]
[1724670918530,2.18544,2744.6,2744.5,0.00923723]
[1724670918840,5.82864,2744.6,2744.5,0.00923723]
[1724670920840,7.64985,2744.6,2744.5,0.00923723]
[1724670923725,0.36436,2743.7,2743.6,3.95236]
[1724670923935,0.36436,2743.7,2743.6,4.40799253]
[1724670924643,2.22087,2743.8,2743.6,4.41075873]
[1724670924940,0.36981508,2743.9,2743.8,0.36435]
[1724670925130,0.00546508,2743.9,2743.8,1.67435]
[1724670925326,0.00546508,2743.9,2743.8,6.68561706]
[1724670925741,0.36979508,2743.9,2743.8,5.77474706]
[1724670926132,0.36979508,2743.9,2743.8,2.12994508]
[1724670926638,0.36979508,2743.9,2743.8,0.81994508]
[1724670926834,0.36979508,2743.9,2743.8,0.36435]
[1724670927032,0.36979508,2743.9,2743.8,0.81995379]
[1724670928536,1.28063508,2743.9,2743.8,0.45560379]
[1724670929246,2.18609,2743.8,2743.7,0.3612]
[1724670929435,2.58522,2743.8,2743.7,0.3612]
[1724670929634,1.27522,2743.8,2743.7,0.3612]
[1724670932237,0.36435,2743.8,2743.7,0.72556]
[1724670932538,0.36435,2743.8,2743.7,2.03556]
[1724670934029,0.36980508,2743.9,2743.8,0.36434]
[1724670934241,0.36980508,2743.9,2743.8,1.67434]
[1724670936434,1.28064508,2743.9,2743.8,1.67434]
[1724670937740,0.36434,2743.8,2743.7,2.03555]
[1724670938146,0.36434,2743.8,2743.7,5.68035]
[1724670938340,1.27521,2743.8,2743.7,4.37035]
[1724670938536,1.27521,2743.8,2743.7,0.3612]
[1724670938845,1.65951,2743.8,2743.7,0.3612]
[1724670940435,2.01221,2743.8,2743.7,0.3612]
[1724670941046,1.65951,2743.8,2743.7,0.3612]
[1724670942340,0.3843,2743.8,2743.6,3.2105662]
[1724670942642,0.3843,2743.8,2743.6,0.0027662]
[1724670942643,7.50086,2743.7,2743.6,0.0027662]
[1724670947647,6.19086,2743.7,2743.6,0.0027662]
[1724670947947,6.58996,2743.7,2743.6,0.0027662]
[1724670948338,2.94516,2743.7,2743.6,0.0027662]
[1724670948533,6.58996,2743.7,2743.6,0.0027662]
[1724670948744,0.59369306,2743.7,2743.6,0.0027662]
[1724670948942,1.27526,2743.7,2743.6,0.0027662]
[1724670949345,1.27526,2743.7,2743.6,0.3749662]
[1724670949552,0.36436,2743.7,2743.6,0.3749662]
[1724670949743,1.67436,2743.7,2743.6,0.3749662]
[1724670950143,1.67436,2743.7,2743.6,0.7393362]
[1724670950647,1.67436,2743.7,2743.6,0.3749662]
[1724670951353,1.67436,2743.7,2743.6,0.7393362]
[1724670951554,1.67436,2743.7,2743.6,0.3749662]
[1724670951853,0.36436,2743.7,2743.6,0.3749662]
[1724670952451,1.27526,2743.7,2743.6,0.3749662]
[1724670953147,0.36436,2743.8,2743.7,0.36435]
[1724670953350,0.36436,2743.8,2743.7,2.0595]
[1724670953545,0.36436,2743.8,2743.7,5.7043]
[1724670953942,0.36436,2743.8,2743.7,4.3943]
[1724670954153,1.27523,2743.8,2743.7,4.3943]
[1724670954747,1.27523,2743.8,2743.7,0.7495]
[1724670954945,1.27526,2743.7,2743.6,0.3749662]
[1724670955147,2.58526,2743.7,2743.6,0.7411662]
[1724670956849,2.58526,2743.7,2743.6,0.0027662]
[1724670958450,7.14096,2743.7,2743.6,0.0027662]
[1724670961051,7.36985694,2743.7,2743.6,0.0027662]
[1724670963061,14.19166694,2743.7,2743.6,0.0027662]
[1724670963558,9.19166694,2743.7,2743.6,0.0027662]
[1724670966962,2.18632,2743.5,2743.4,0.00546508]
[1724670967158,3.49632,2743.5,2743.4,0.00546508]
[1724670967459,7.14112,2743.5,2743.4,0.00546508]
[1724670967953,7.14499046,2743.5,2743.4,0.00838411]
[1724670972355,2.58922046,2743.5,2743.4,0.00838411]
[1724670972562,2.58922046,2743.5,2743.4,0.77488411]
[1724670972962,2.58922046,2743.5,2743.4,1.23059458]
[1724670973269,2.58922046,2743.5,2743.4,1.23059926]
[1724670974858,1.27922046,2743.5,2743.4,1.59499926]
[1724670975059,0.36825046,2743.5,2743.4,1.59499926]
[1724670975954,1.27922046,2743.5,2743.4,1.23059926]
[1724670976158,2.58922046,2743.5,2743.4,1.23059926]
[1724670977967,2.58922046,2743.5,2743.4,1.23059261]
[1724670978166,2.58922046,2743.5,2743.4,1.59499261]
[1724670980663,2.58922046,2743.5,2743.4,1.23059261]
[1724670981063,2.58922046,2743.5,2743.4,1.60969261]
[1724670981263,2.58922046,2743.5,2743.4,1.97409261]
[1724670982272,2.58922046,2743.5,2743.4,1.60969261]
[1724670982474,3.50019046,2743.5,2743.4,0.85069261]
[1724670983469,3.87369046,2743.5,2743.4,0.46409261]
[1724670984073,3.87369046,2743.5,2743.4,0.00838411]
[1724670984465,7.51849046,2743.5,2743.4,0.45575288]
[1724670984779,1.27549,2743.2,2743.1,0.3755]
[1724670984972,2.58549,2743.2,2743.1,0.83124703]
[1724670985573,2.58549,2743.2,2743.1,0.83501621]
[1724670986179,1.67442,2743.2,2743.1,1.19945621]
[1724670987475,0.00387046,2743.5,2743.3,0.36441]
[1724670987681,1.67825046,2743.5,2743.4,0.82184703]
[1724670988074,1.67825046,2743.5,2743.4,1.18624703]
[1724670988274,1.67825046,2743.5,2743.4,7.05204703]
[1724670988275,0.00387046,2743.5,2743.4,7.05204703]
[1724670988473,0.00387046,2743.5,2743.4,6.14104703]
[1724670988678,0.00387046,2743.5,2743.4,6.70004355]
[1724670988984,0.00387046,2743.5,2743.4,7.09014569]
[1724670989282,0.00387046,2743.5,2743.4,6.70004355]
[1724670989686,2.22632508,2743.9,2743.8,0.36434]
[1724670989687,0.00546508,2743.9,2743.8,0.36434]
[1724670989880,0.00546508,2743.9,2743.8,5.77488703]
[1724670990380,0.36979508,2743.9,2743.8,5.41054703]
[1724670990581,0.37370592,2743.9,2743.8,5.78744703]
[1724670990776,0.00937592,2743.9,2743.8,6.15178703]
[1724670990977,0.00503685,2743.9,2743.8,6.71071597]
[1724670991182,0.00503685,2743.9,2743.8,12.62158597]
[1724670991389,0.00503685,2743.9,2743.8,17.9007411]
[1724670991779,0.00503685,2743.9,2743.8,13.05579261]
[1724670992175,0.00503685,2743.9,2743.8,11.71071597]
[1724670992879,0.91063,2744.6,2743.8,18.63227625]
[1724670992880,0.36427,2744.4,2743.8,18.63227625]
[1724670993087,0.36426,2744.5,2744.3,0.36428]
[1724670993287,0.36426,2744.5,2744.4,2.53214703]
[1724670993683,0.36426,2744.5,2744.4,6.17614703]
[1724670993684,0.36685816,2744.5,2744.4,6.17614703]
[1724670994087,0.36685816,2744.5,2744.4,4.86591209]
[1724670995293,0.36685816,2744.5,2744.4,4.4104]
[1724670995981,0.36685816,2744.5,2744.4,4.7607]
[1724670997297,0.36685816,2744.5,2744.4,0.3846]
[1724670999086,0.36685816,2744.5,2744.3,0.3668]
[1724670999087,0.36427,2744.4,2744.3,0.3668]
[1724670999287,1.63264,2744.4,2744.3,0.7195]
[1724671000683,2.18568,2744.3,2744.2,0.00546508]
[1724671001192,5.82968,2744.3,2744.2,0.00546508]
[1724671002999,6.05533875,2744.3,2744.2,0.00546508]
[1724671006102,1.27498,2744.3,2744.2,0.00546508]
[1724671006293,0.36428,2744.3,2744.2,0.00546508]
[1724671008197,0.36428,2744.3,2744.2,0.35666508]
[1724671009102,1.27498,2744.3,2744.2,0.35666508]
[1724671009302,5.82968,2744.3,2744.2,0.00546508]
[1724671010399,0.36442,2743.2,2743.1,0.00376918]
[1724671011199,1.26632,2743.7,2743.1,3.64936918]
[1724671011399,0.3644,2743.4,2743.3,0.36441]
[1724671011591,0.3644,2743.4,2743.3,4.0092]
[1724671011794,0.36439,2743.5,2743.4,0.36439]
[1724671011994,0.36439,2743.5,2743.4,1.11939]
[1724671012202,0.36439,2743.5,2743.4,4.019]
[1724671012393,0.36442,2743.2,2743.1,0.00376918]
[1724671012595,0.36442,2743.2,2743.1,0.36486918]
[1724671014895,0.36442,2743.2,2743.1,0.72930918]
[1724671015296,0.36442,2743.2,2743.1,0.36486918]
[1724671015498,0.36442,2743.2,2743.1,0.72930918]
[1724671016305,1.27549,2743.2,2743.1,0.36486918]
[1724671016505,1.27549,2743.2,2743.1,0.00376918]
[1724671016802,2.18656,2743.2,2743.1,0.00376918]
[1724671017703,5.83216,2743.2,2743.1,0.00376918]
[1724671019802,4.92109,2743.2,2743.1,0.00376918]
[1724671021303,5.83216,2743.2,2743.1,0.00376918]
[1724671027896,4.92109,2743.2,2743.1,0.00376918]
[1724671028104,0.36442,2743.2,2743.1,0.36820918]
[1724671033010,1.27549,2743.2,2743.1,0.36820918]
[1724671033209,1.27549,2743.2,2743.1,0.00376918]
[1724671033909,1.27549,2743.2,2743.1,0.36820918]
[1724671035011,1.27549,2743.2,2743.1,0.00376918]
[1724671036413,2.410229,2743.2,2743.1,0.00376918]
[1724671038110,5.560229,2743.2,2743.1,0.00376918]
[1724671039013,9.205829,2743.2,2743.1,0.00376918]
[1724671039206,2.18673,2743.0,2742.9,0.00546508]
[1724671039621,5.83233,2743.0,2742.9,0.00546508]
[1724671040013,6.20663,2743.0,2742.9,0.00546508]
[1724671040321,6.20663,2743.0,2742.9,0.00928333]
[1724671041418,0.91123,2742.7,2742.1,3.57236]
[1724671041722,0.36454,2742.3,2742.2,0.716]
[1724671042214,0.36454,2742.3,2742.2,4.3624]
[1724671042520,0.36772644,2742.3,2742.2,4.36640026]
[1724671047519,1.27909644,2742.3,2742.2,0.72000026]
[1724671047921,5.34046644,2742.3,2742.2,0.00400026]
[1724671049322,1.27596,2742.2,2742.1,3.5922]
[1724671049522,1.62876,2742.2,2742.1,0.3844]
[1724671049917,1.276,2742.1,2742.0,0.00546508]
[1724671050121,1.6569,2742.1,2742.0,0.00546508]
[1724671050321,2.56833,2742.1,2742.0,0.00831528]
[1724671050825,1.6569,2742.1,2742.0,0.00831528]
[1724671051026,1.276,2742.1,2742.0,0.00831528]
[1724671052114,2.18743,2742.1,2742.0,0.00831528]
[1724671056122,1.276,2742.1,2742.0,0.00831528]
[1724671056518,1.276,2742.1,2742.0,1.11981528]
[1724671058228,2.18743,2742.1,2742.0,1.11981528]
[1724671058531,2.18743,2742.1,2742.0,0.00831528]
[1724671063628,4.0103,2742.1,2742.0,0.00831528]
[1724671063825,16.7651452,2742.1,2742.0,1e-08]
[1724671064138,21.7651452,2742.1,2742.0,1e-08]
[1724671065241,24.9729452,2742.1,2742.0,1e-08]
[1724671066841,2.1876,2741.9,2741.8,0.00546508]
[1724671067041,1.27633,2741.4,2741.3,0.7354]
[1724671067242,1.27633,2741.4,2741.3,1.1129]
[1724671067447,4.79603,2741.4,2741.3,1.1129]
[1724671067847,4.79603,2741.4,2741.3,1.11669011]
[1724671069358,4.79603,2741.4,2741.3,0.75369011]
[1724671071458,0.36466,2741.4,2741.3,4.76637011]
[1724671071660,0.36466,2741.5,2741.4,0.36465]
[1724671073661,0.36466,2741.4,2741.3,1.11836011]
[1724671074169,0.36466,2741.4,2741.3,4.76636011]
[1724671079166,1.27633,2741.4,2741.3,4.76636011]
[1724671079366,1.27633,2741.4,2741.3,0.75369011]
[1724671080168,1.27633,2741.4,2741.3,1.11837011]
[1724671080463,0.36466,2741.4,2741.3,4.76637011]
[1724671081264,1.27633,2741.4,2741.3,4.40169011]
[1724671081466,1.27633,2741.4,2741.3,4.76637011]
[1724671082460,1.27633,2741.4,2741.3,4.40169011]
[1724671082665,2.188,2741.4,2741.3,0.75369011]
[1724671082865,2.5509,2741.4,2741.3,0.75369011]